Cogmind - Beta 16 --- EXPLORER MODE // 2025.12.02 @ 10:27:17 Player: K.K.Y. Result: Destroyed by Shrapnel Trap Performance ------------- Evolutions (0) 0 Regions Visited (3) 600 Robots Destroyed (44) 220 Value Destroyed (1206) 1206 Prototype IDs (12) 240 Alien Tech Used (0) 0 Bonus (0) 0 TOTAL SCORE: 2266 Bonus ------- None Cogmind --------- Core Integrity 0/250 Matter 236/300 Energy 249/250 System Corruption 0% Temperature Cool (0) Movement Core (500) Ox9 Location -10/Subcaves Parts ------- > --- POWER (1) -------- Ion Engine > --- PROPULSION (2) --- (None) > --- UTILITY (3) ------ Medium Storage Unit Light Armor Plating Makeshift Light Armor Plating > --- WEAPON (2) ------- Barrage Gun Barrage Gun > --- INVENTORY (10) --- Huge Storage Unit Light Humpback Humpback Machine Analyzer Scrap Shield Makeshift System Shield Recalibrator Peak State ------------ > --- POWER ------------ Ion Engine > --- PROPULSION ------- Light Treads Spiked Treads > --- UTILITY ---------- Medium Storage Unit Core Shielding Makeshift Light Armor Plating > --- WEAPON ----------- Riot Gun Riot Gun > --- INVENTORY -------- Huge Storage Unit Light Humpback Machine Analyzer Utility Shielding Scrap Shield Makeshift System Shield Recalibrator Mining Laser [Rating: 18] Favorites ----------- Power Ion Engine Engine Ion Engine Propulsion Light Treads Treads Light Treads Utility Medium Storage Unit Device Structural Scanner Storage Medium Storage Unit Protection Makeshift Light Armor Plating Weapon Barrage Gun Energy Gun Riot Gun Energy Cannon Beam Cannon Ballistic Gun Barrage Gun Launcher Rocket Launcher Special Weapon Mining Laser Build | -11 -10 -10 -10 ------- Run | Yrd Mat Min Sub Slots Evolved 1 | . 1 . . Power . | . . . . Propulsion . | . . . . Utility 1 | . 1 . . Weapon . | . . . . Parts Attached 28 | 7 7 3 11 Power 3 | 1 1 1 . Engine 3 | 1 1 1 . Core . | . . . . Reactor . | . . . . Propulsion 5 | 2 2 1 . Treads 5 | 2 2 1 . Leg . | . . . . Wheel . | . . . . Hover . | . . . . Flight . | . . . . Utility 7 | 2 3 . 2 Device 2 | 2 . . . Storage 1 | . 1 . . Processor . | . . . . Hackware . | . . . . Protection 4 | . 2 . 2 Artifact . | . . . . Weapon 13 | 2 1 1 9 Energy Gun 6 | 2 . . 4 Energy Cannon 2 | . 1 . 1 Ballistic Gun 3 | . . . 3 Ballistic Cannon . | . . . . Launcher 1 | . . 1 . Special Weapon 1 | . . . 1 Impact Weapon . | . . . . Slashing Weapon . | . . . . Piercing Weapon . | . . . . Special Melee Weapon . | . . . . Unidentified Prototypes . | . . . . Parts Lost 9 | . 2 1 6 Power 1 | . 1 . . Propulsion 2 | . . . 2 Utility 1 | . . . 1 Weapon 5 | . 1 1 3 Highest Loss Streak 3 | . 2 1 3 To Critical Strikes . | . . . . Average Backups 7 | 2 6 8 7 Power . | . . . . Propulsion . | . . . . Utility 6 | 2 5 7 7 Weapon . | . . 1 . Tool/Special . | . . . . Unused Backups 9 | . . . 9 Power . | . . . . Propulsion . | . . . . Utility 8 | . . . 8 Weapon . | . . . . Tool/Special 1 | . . . 1 Average Slot Usage (%) 82 | . 94 91 78 Engine 11 | . 10 12 12 Treads 10 | . 24 25 4 Device 4 | . 17 12 . Storage 11 | . 6 12 12 Protection 19 | . 8 12 23 Energy Gun 7 | . 20 2 5 Energy Cannon 2 | . 3 12 . Ballistic Gun 12 | . . . 17 Peak Build Rating 18 | 7 10 11 18 Average Rating 13 | 4 8 9 14 On Entrance 7 | . 7 10 11 Avg Prop Armor Cover (%) . | . . . . Naked Turns . | . . . . Heaviest Build 28 | 8 21 24 28 Greatest Support 40 | 40 40 40 40 Greatest Overweight (x) 9 | 1 . . 9 Average Overweight (x) 2 | . . . 5 Largest Inventory Capacity 10 | 5 10 10 10 Average Capacity 9 | 5 7 10 10 Most Carried 10 | 5 10 10 10 Average Carried 9 | 3 6 10 9 Final Capacity 10 | 5 10 10 10 Final Carried 10 | 3 10 10 10 Class Distribution -------------------- 100% | Hacker-Mutant Dominant Class ---------------- Hacker-Mutant | -10/Materials Hacker-Mutant | -10/Mines Hacker-Mutant | -10/Subcaves Resources | -11 -10 -10 -10 ----------- Run | Yrd Mat Min Sub Matter Collected 707 | 236 129 19 323 Remotely . | . . . . Salvage Created 1463 | . 731 40 692 Parts 86 | . 43 3 40 Haulers Intercepted 2 | . 2 . . Recyclers Shooed . | . . . . Parts Field Recycled . | . . . . Retrieved Matter . | . . . . Parts Self-Destructed . | . . . . Prevented . | . . . . Parts Restored . | . . . . Kills | -11 -10 -10 -10 ------- Run | Yrd Mat Min Sub Combat Hostiles Destroyed 34 | . 16 2 16 Guns 21 | . 10 . 11 Cannons 9 | . 6 2 1 AOE 3 | . . . 3 Classes Destroyed 9 | . 7 . 2 Tunneler 2 | . 1 1 . Hauler 2 | . 2 . . Mechanic 1 | . 1 . . Turret 2 | . . . 2 Watcher 3 | . 3 . . Swarmer 10 | . 6 2 2 Grunt 7 | . 7 . . Cobbler 1 | . . . 1 Subdweller 17 | . 3 . 14 Best Kill Streak 4 | . 4 2 4 Combat Bots Only 4 | . 4 2 3 Max Kills in Single Turn 2 | . 1 1 2 Gunslinging . | . . . . Exploded 2 | . . . 2 Melee . | . . . . Uniques/NPCs Destroyed . | . . . . Combat | -11 -10 -10 -10 -------- Run | Yrd Mat Min Sub Hostile Shots Fired 293 | . 117 19 157 Missed 90 | . 32 5 53 Hits 203 | . 85 14 104 Projectile 203 | . 85 14 104 AOE 2 | . . . 2 Critical Strikes 1 | . . . 1 Damage Taken 1748 | . 693 63 992 Core 272 | . 82 9 181 Absorbed by Shields . | . . . . Redirected to Shielding 41 | . 16 2 23 Ignored by Resistances 1101 | . 438 48 615 Core Remaining (%) 100 | 100 . . . Volleys Fired 163 | . 67 9 87 Largest 2 | . 2 2 2 Hottest 150 | . 100 100 150 Shots Fired 270 | . 125 10 135 Gun 201 | . 95 1 105 Cannon 48 | . 30 9 9 Launcher 10 | . . . 10 Special 11 | . . . 11 Kinetic 35 | . . . 35 Thermal 120 | . 89 10 21 Explosive 10 | . . . 10 Electromagnetic 105 | . 36 . 69 Robot Hit Streak 46 | . 46 3 35 Robot Miss Streak 2 | . 2 1 2 Penetration Max . | . . . . Secondary Targets 2 | . . . 2 Max Gunslinging Chain 1 | . . . 1 Shots Hit Robots 209 | . 107 6 96 Core Hits 83 | . 37 3 43 Critical Kills . | . . . . Critical Parts Destroyed . | . . . . Critical Strikes 1 | . . . 1 Burn 1 | . . . 1 Melee Attacks . | . . . . Impact . | . . . . Slashing . | . . . . Piercing . | . . . . Sneak Attacks . | . . . . Combat Hostiles . | . . . . Follow-up Attacks . | . . . . Damage Inflicted 3483 | . 1500 112 1871 Guns 2151 | . 1011 . 1140 Cannons 623 | . 416 105 102 Explosions 510 | . 73 . 437 Melee . | . . . . Ramming 7 | . . 7 . Kinetic 254 | . . . 254 Thermal 1463 | . 1013 105 345 Explosive 402 | . . . 402 Electromagnetic 1357 | . 487 . 870 Impact . | . . . . Slashing . | . . . . Piercing . | . . . . Highest Corruption . | . . . . Average Corruption . | . . . . Corruption Purged . | . . . . Corruption Blocked . | . . . . Overload Shots . | . . . . Overflow Damage 1 | . 1 . . Projectiles . | . . . . Explosions 1 | . 1 . . Melee . | . . . . Knockbacks . | . . . . Impact . | . . . . Kinetic . | . . . . Secondary . | . . . . Self-Inflicted Damage 9 | . . . 9 Shots 2 | . . . 2 Rammed 1 | . . 1 . Targets Rammed 2 | . . 2 . Kicked . | . . . . Crushed 1 | . . 1 . Highest Temperature 498 | . 498 143 170 Average Temperature 133 | . 155 78 60 Received Heat Transfer 915 | . 384 . 531 Effects 4 | . 4 . . Shutdowns 3 | . 3 . . Damage (minor) 1 | . 1 . . Siege Activations . | . . . . Martial Activations . | . . . . Shielding Activations . | . . . . Robots Disrupted 1 | . . . 1 Combat Hostiles 1 | . . . 1 Robots Corrupted 3 | . . . 3 Combat Hostiles 1 | . . . 1 Parts Fried 6 | . 1 . 5 Impact Corruptions . | . . . . Robots Melted . | . . . . Combat Hostiles . | . . . . Parts Melted 4 | . 2 . 2 Heat Transferred 3193 | . 2188 222 783 Parts Sabotaged . | . . . . Parts Stolen . | . . . . Parts Stripped . | . . . . Power Chain Reactions 3 | . 2 . 1 Alert | -11 -10 -10 -10 ------- Run | Yrd Mat Min Sub Maximum Alert Level . | . . . . Low Security (%) 100 | 100 100 100 . Level 1 . | . . . . Level 2 . | . . . . Level 3 . | . . . . Level 4 . | . . . . Level 5 . | . . . . High Security . | . . . . Max Security . | . . . . Peak Influence 89 | . 89 50 . Initial . | . . . . Average 7 | . 11 2 . Influence Increases 841 | . 376 70 395 Destroy 0b10 Robot/C 380 | . 260 40 80 Destroy 0b10 Robot/NC 40 | . 35 5 . Destroy Leader 80 | . 70 10 . Disable Machine 4 | . 4 . . Destroy Structure 7 | . 7 . . Lose Combat Pursuer 330 | . . 15 315 Influence Decreases 841 | . 376 70 395 Time Decay 791 | . 376 70 345 Lost Part 50 | . . . 50 Squads Dispatched . | . . . . Investigation . | . . . . Extermination . | . . . . Reinforcement . | . . . . Assault . | . . . . Garrison . | . . . . Intercept . | . . . . Searches Triggered . | . . . . Construction Impeded . | . . . . Haulers Reinforced . | . . . . Active Scanning Responses . | . . . . Cargo Convoy Interrupts . | . . . . Stealth | -11 -10 -10 -10 --------- Run | Yrd Mat Min Sub Distress Signals . | . . . . Communications Jammed . | . . . . Distress Signals . | . . . . Times Spotted 64 | . 27 3 34 Peak Tracking Total 6 | . 3 2 6 Tactical Retreats 5 | . 1 1 3 Traps | -11 -10 -10 -10 ------- Run | Yrd Mat Min Sub Traps Triggered 4 | . 3 . 1 Indirectly . | . . . . Trap Hack Attempts . | . . . . Triggered . | . . . . Disarmed . | . . . . Reprogrammed . | . . . . Reused . | . . . . Traps Extracted . | . . . . Installed . | . . . . Triggered . | . . . . Machines | -11 -10 -10 -10 ---------- Run | Yrd Mat Min Sub Machines Disabled 2 | . 1 . 1 Max in Single Turn 1 | . 1 . 1 Machines Repaired . | . . . . Machines Dismantled . | . . . . Machines Sabotaged . | . . . . Overloaded Fab Kills . | . . . . Hacking | -11 -10 -10 -10 --------- Run | Yrd Mat Min Sub Machines Accessed 2 | . . . 2 Terminals . | . . . . Fabricators . | . . . . Repair Stations . | . . . . Recycling Units . | . . . . Scanalyzers . | . . . . Garrison Access . | . . . . Total Hacks 5 | . . . 5 Successful 5 | . . . 5 Failed . | . . . . Catastrophic . | . . . . Database Lockouts . | . . . . Manual . | . . . . Terminals . | . . . . Fabricators . | . . . . Repair Stations . | . . . . Recycling Units . | . . . . Scanalyzers . | . . . . Garrison Access . | . . . . Terminal Hacks 5 | . . . 5 Record 4 | . . . 4 Proto ID Catalog 1 | . . . 1 Fabricator Hacks . | . . . . Repair Station Hacks . | . . . . Recycling Unit Hacks . | . . . . Scanalyzer . | . . . . Garrison Access Hacks . | . . . . Unauthorized Hacks . | . . . . Terminals . | . . . . Fabricators . | . . . . Repair Stations . | . . . . Recycling Units . | . . . . Scanalyzers . | . . . . Garrison Access . | . . . . Data Cores Recovered . | . . . . Used . | . . . . Hacking Detections . | . . . . Full Trace Events . | . . . . Feedback Events . | . . . . Feedback Blocked . | . . . . Robot Schematics Acquired . | . . . . Robots Built . | . . . . Authchips . | . . . . Time . | . . . . Total Robot Build Rating . | . . . . Part Schematics Acquired . | . . . . Parts Built . | . . . . Authchips . | . . . . Time . | . . . . Total Part Build Rating . | . . . . Part Studies Acquired . | . . . . Parts Repaired . | . . . . Time . | . . . . Parts Recycled . | . . . . Recycled Matter . | . . . . Retrieved Matter . | . . . . Retrieved Components . | . . . . Parts Scanalyzed . | . . . . Part Schematics Acquired . | . . . . Parts Damaged . | . . . . Bothacking | -11 -10 -10 -10 ------------ Run | Yrd Mat Min Sub Used RIF Installer . | . . . . Robots Hacked . | . . . . Non-combat . | . . . . Combat . | . . . . Robot Hacks Applied . | . . . . Relay Couplers Released . | . . . . Fabnet Peak Effective % . | . . . . Robots Rewired . | . . . . Allies Hacked . | . . . . Hacks Repelled . | . . . . Allies | -11 -10 -10 -10 -------- Run | Yrd Mat Min Sub Total Allies . | . . . . Largest Group . | . . . . Highest-Rated Group . | . . . . Highest-Rated Ally . | . . . . Total Orders . | . . . . Ally Attacks . | . . . . Total Damage . | . . . . Kills . | . . . . Allies Corrupted . | . . . . Allies Melted . | . . . . Intel | -11 -10 -10 -10 ------- Run | Yrd Mat Min Sub Active Infowar (turns) 2400 | 53 1284 924 139 Sensors 634 | 51 583 . . Structural 2400 | 53 1284 924 139 Robot Analysis Total . | . . . . Derelict Logs Recovered 2 | . . . 2 Drone Launches . | . . . . Drone Recoveries . | . . . . Exploration | -11 -10 -10 -10 ------------- Run | Yrd Mat Min Sub Turns Passed 7950 | 71 1284 924 5671 Spaces Moved 2760 | 49 653 560 1498 Core 963 | 31 . . 932 Treads 1797 | 18 653 560 566 Legs . | . . . . Wheels . | . . . . Hover . | . . . . Flight . | . . . . Fastest Speed 50 | 50 160 160 160 Average Speed 267 | 94 160 160 360 Slowest Speed 500 | 160 160 160 500 Overloaded Moves . | . . . . Propulsion Burnouts . | . . . . Robots Hopped . | . . . . Potential Cave-ins . | . . . . Cave-ins Triggered . | . . . . Exploration Rate (%) 70 | 3 99 99 79 Regions Visited 3 Branch Regions 2 Pre-discovered Areas 4 | . . . 4 Known Exits Taken 3 | 1 1 1 . Unknown Exits Taken . | . . . . Scrap Searched 9 | . . 1 8 Spaces Dug . | . . . . Terrain Destroyed 88 | . 5 . 83 Melee . | . . . . Projectile . | . . . . AOE 88 | . 5 . 83 Terrain Rammed . | . . . . Walls Destroyed . | . . . . Machines Disabled . | . . . . Actions | -11 -10 -10 -10 --------- Run | Yrd Mat Min Sub Total 3038 | 72 765 577 1624 Wait 40 | 11 23 2 4 Move 2757 | 48 652 559 1498 Hop . | . . . . Pick Up 21 | 6 10 . 5 Fast Attach 14 | 4 4 1 5 Attach 7 | 3 2 . 2 Detach 1 | . . . 1 Swap 15 | . 4 2 9 Drop 18 | . 3 2 13 Fire 163 | . 67 9 87 Melee . | . . . . Ram . | . . . . Kick . | . . . . Crush 2 | . . 2 . Escape Stasis . | . . . . Rewire . | . . . . Trap . | . . . . Miscellaneous . | . . . . Route ------- -11/Scrapyard -10/Materials (discovered 6 exits: *Mat x3 / *Min x2 / *Sub) -10/Mines (discovered 4 exits: *Mat x2 / Exi / *Sub) -10/Subcaves (discovered 3 exits: *Mat x2 / *Rec) History --------- Turn | Location | Event 8 | -11/Scrapyard | Identified exit to Materials 8 | -11/Scrapyard | Discovered exit to Materials (range 16) 72 | -11/Scrapyard | Entered Materials 72 | -10/Materials | Evolved 1 slot: Utility x1 72 | -10/Materials | Identified exit to Mines 72 | -10/Materials | Discovered exit to Mines (range 7) 301 | -10/Materials | Build established: Hacker-Mutant 379 | -10/Materials | Identified exit to Materials 379 | -10/Materials | Discovered exit to Materials (range 7) 653 | -10/Materials | Discovered exit to Mines (range 16) 749 | -10/Materials | Discovered exit to Materials (range 16) 872 | -10/Materials | Derelicts attacked the area 1020 | -10/Materials | Identified exit to Subcaves 1020 | -10/Materials | Discovered exit to Subcaves (range 8) 1220 | -10/Materials | Discovered exit to Materials (range 7) 1356 | -10/Materials | Entered Mines 1388 | -10/Mines | Discovered exit to Materials (range 15) 1686 | -10/Mines | Discovered exit to Subcaves (range 10) 1699 | -10/Mines | Discovered exit to Materials (range 9) 1769 | -10/Mines | Deemed a non-threat by the Exiles lab entrance 1769 | -10/Mines | Identified exit to Exiles 1769 | -10/Mines | Discovered exit to Exiles (range 6) 1888 | -10/Mines | Found a hidden stash of uninstalled traps 2147 | -10/Mines | Received a Rocket Launcher from a helpful Derelict 2280 | -10/Mines | Entered Subcaves 2281 | -10/Subcaves | Approached by a straggling Scientist 2472 | -10/Subcaves | Shifting Twisted Machinery released Riot Gun 2542 | -10/Subcaves | Core integrity fell below 50% 2544 | -10/Subcaves | Ambushed by Subdweller buried in earth 2546 | -10/Subcaves | Shifting Twisted Machinery released Riot Gun 2918 | -10/Subcaves | Shifting Twisted Machinery released Mak. System Shield 2944 | -10/Subcaves | Shifting Twisted Machinery released Sub. Laser 2968 | -10/Subcaves | Identified exit to Materials 2968 | -10/Subcaves | Discovered exit to Materials (range 9) 3033 | -10/Subcaves | Ambushed by angry Subdweller bent on revenge 3123 | -10/Subcaves | Identified exit to Recycling 3123 | -10/Subcaves | Discovered exit to Recycling (range 11) 3252 | -10/Subcaves | Disturbed a concealed Subdweller 3254 | -10/Subcaves | Core integrity fell below 20% 3316 | -10/Subcaves | Disturbed a concealed Subdweller 3431 | -10/Subcaves | Lost 3 parts (2n1w) 3556 | -10/Subcaves | Visited Clippyterm 3568 | -10/Subcaves | Learned Factory stockpile data 3568 | -10/Subcaves | Learned location of Extension (-6) 6179 | -10/Subcaves | Discovered exit to Materials (range 8) 6190 | -10/Subcaves | Shifting Twisted Machinery released Mak. Kinetic Plating 6215 | -10/Subcaves | Shifting Twisted Machinery released Sub. Optics 7022 | -10/Subcaves | Visited 4L-MR0's lab 7239 | -10/Subcaves | A swath of the cavern ceiling suddenly collapsed 7782 | -10/Subcaves | Learned location of Zion (-6) 7782 | -10/Subcaves | Met a Zionite searching for "candidates" 7951 | -10/Subcaves | Destroyed by Shrapnel Trap Last Messages --------------- Hoverbase Flightbrick Gun Armor Tower Shield Power Bank Rainbow Chip VL-GR5's Exoskeleton "Deathgrip" Powered Cannon A swath of the cavern ceiling suddenly collapses. 07260_ 3K-K33(z): "She is not going to be happy we haven't found any suitable candidates yet." 07782_ 3K-K33(z): "Hey you! It's really dangerous down here, I feel that you could die at any moment. For your health and safety might I suggest a trip to Zion?" World map updated: -6/Zion. 07951_ Triggered Shrapnel Trap. 07951_ An expanding cloud of shrapnel blasts out in all directions. Map ----- +----------------------------------------------------+ | ?????????????????????????## "#?????????????? | | ?????????????????????????#" ## ##?????????????? | | ###??????????????######### "#######????????????? | | ######???####?## ## " ### #####????????? | | ##?## ### #????????? | | ### # ### #????????? | | ## ##?## ## ##????????? | | #???# ## ###?????????? | | # #???## #???????????? | | ## ## #????# #???????????? | | ## ##### ##????# ##???????????? | | ?## ##???# ##?????## #????????????? | | ??## #????## ######??## #????????????? | | ???## #####???### ##?# ####????????????? | | ????###### ##????# #?# ##??????????????? | | ????????# ##???# #?## #??????????????? | | ###?????# #???# ###?# #??????????????? | | ###??## #????# ##???## ##??????????????? | | #### #?????# ^ ##???# #??????????????? | | ######## ##### #######?????????? | | ### ## ### ## "## #? | | ??## ## ""# #? | | ???## ## ### ## #????? | | ????## ## ##?# # ## #????? | | ?????# ### ##?##### ####????????? | | ?????##### ### @ ###??# ##????????? | | ????????# #?##^ ## ##?# #????????? | | ????????## ##?## ### ### ##???????? | | ?????????## #??#^ ##?# #???????? | | ????????### #?## #??# ## #???????? | | ????????# #?# ##?# ### #???????? | | ????????# #?# #?#####?#### #???????? | | ????????## #?# #??????????# #??????? | | ???????### ##?## #??####????# ##??????? | | ???????# ###??# ##### #???? ^ ##???????? | | ??????## ####### ## # ##???# ##????????? | | ??????# ## #???# #?????????? | | ??????# ### ## ##???# #?????????? | | ??????######## ### # ##???? ?????????? | | ?????????????###### ###### ?????????? | | ??????????????????# # ### ### ##????????? | | ??????????????????#####?##### #??# #?????????? | | ????????????????????????????# #??? ?????????? | | ????????????????????????????######??? ??????????? | | ?????????????????????????????????????????????????? | | ?????????????????????????????????????????????????? | | ?????????????????????????????????????????????????? | | ?????????????????????????????????????????????????? | | ?????????????????????????????????????????????????? | | ?????????????????????????????????????????????????? | +----------------------------------------------------+ Best States ------------- Heat Dissipation 25 Energy Generation 10 Energy Capacity 250 Matter Stores 300 Matter Capacity 300 Sight Range 16 Robot Scan Range 14 Terrain Scan Density 10 Armor Coverage 250 Resistance: KI 35 Resistance: TH 35 Resistance: EX 35 Resistance: EM 35 Resistance: I 35 Resistance: S 35 Resistance: P 35 Core Shielding 20 Utility Shielding 33 Evasion (%) 50 Recoil Reduction 2 Offensive Hacking 20 Item Schematics ----------------- None Robot Schematics ------------------ None Fabricated ------------ Nothing Repaired ---------- Nothing Studied --------- None Alien Tech Used ----------------- None Achievements -------------- None Challenges ------------ None Game ------ Seed BombInertialSpoofer Manual? 0 Play Time 00:23:59 Cumulative 153.2 hours Start 2025.12.02 @ 09:52:01 End 2025.12.02 @ 10:27:17 Sessions 1 Manual Loads 0 Difficulty Explorer Special Mode None Game No. 192 Rogue 0 Adventurer 0 Explorer 192 Win Type - Total 0 Types 0/0/0/0/0/0/0/0/0/0 Lore% 70 Gallery% 66 Achievement% 52 Wizard Run 0 Options --------- Layout 1 ASCII 0 Keyboard 0 Movement Mouse Keybinds 0 Fullscreen 1 Font 24/Smallcaps Map View 50x35 Zoom Use 0% Tactical HUD 1 Map Filters NONE Filters NONE Steam 1 RUN: 3a93a097-7a51-48b9-a2b3-7c5980aba542